fUST/lending_fUST_20250531
["ID","MTS","AMOUNT","RATE_DAILY","PERIOD"]
[363224185,1748628663312,-500.0,0.00019173,2]
[363224186,1748628663321,-500.0,0.00019173,2]
[363224187,1748628663333,-500.73940826,0.00019173,2]
[363224188,1748628663342,-157.854491,0.00019173,2]
[363224189,1748628663352,-157.854491,0.00019173,2]
[363224190,1748628663362,-151.0,0.00019173,2]
[363224191,1748628663372,-965.409704,0.00019176,2]
[363224192,1748628663381,-965.409704,0.00019176,2]
[363224193,1748628663391,-1000.0,0.00019177,2]
[363224194,1748628663401,-500.0,0.00019178,2]
[363224195,1748628663410,-500.0,0.00019178,2]
[363224196,1748628663419,-151.0,0.00019178,2]
[363224197,1748628663429,-151.0,0.00019178,2]
[363224198,1748628663439,-151.0,0.00019178,2]
[363224199,1748628663449,-151.0,0.00019178,2]
[363224200,1748628663458,-151.0,0.00019178,2]
[363224201,1748628663468,-151.0,0.00019178,2]
[363224202,1748628663477,-151.0,0.00019178,2]
[363224203,1748628663489,-151.0,0.00019178,2]
[363224204,1748628663499,-151.0,0.00019178,2]
[363224205,1748628663510,-151.0,0.00019178,2]
[363224206,1748628663519,-151.0,0.00019178,2]
[363224207,1748628663529,-151.0,0.00019178,2]
[363224208,1748628663539,-151.360701,0.00019178,2]
[363224209,1748628663548,-151.0,0.00019178,2]
[363224210,1748628663558,-151.0,0.00019178,2]
[363224211,1748628663569,-151.0,0.00019178,2]
[363224212,1748628663579,-151.0,0.00019178,2]
[363224213,1748628663589,-173.25996,0.00019178,2]
[363224214,1748628663599,-173.25996,0.00019178,2]
[363224215,1748628663609,-173.25996,0.00019178,2]
[363224216,1748628663619,-173.25996,0.00019178,2]
[363224217,1748628663628,-151.0,0.00019178,2]
[363224218,1748628663638,-151.0,0.00019178,2]
[363224219,1748628663647,-151.0,0.00019178,2]
[363224220,1748628663658,-151.0,0.00019178,2]
[363224221,1748628663669,-173.25996,0.00019178,2]
[363224222,1748628663679,-173.25996,0.00019178,2]
[363224223,1748628663689,-173.25996,0.00019178,2]
[363224224,1748628663699,-173.25996,0.00019178,2]
[363224225,1748628663709,-164.836426,0.00019178,2]
[363224226,1748628663719,-164.836427,0.00019178,2]
[363224227,1748628663729,-297.77504,0.00019178,2]
[363224228,1748628663738,-297.77504,0.00019178,2]
[363224229,1748628663748,-297.77504,0.00019178,2]
[363224230,1748628663758,-297.775044,0.00019178,2]
[363224231,1748628663769,-151.0,0.00019178,2]
[363224232,1748628663779,-655.837478,0.00019178,2]
[363224233,1748628663788,-965.409704,0.00019178,2]
[363224234,1748628663798,-655.837478,0.00019178,2]
[363224235,1748628663808,-965.409704,0.00019178,2]
[363224236,1748628663817,-655.837478,0.00019178,2]
[363224237,1748628663827,-655.837479,0.00019178,2]
[363224238,1748628663838,-965.409704,0.00019178,2]
[363224239,1748628663848,-965.409704,0.00019178,2]
[363224240,1748628663858,-157.854491,0.00019178,2]
[363224241,1748628663868,-157.854491,0.00019178,2]
[363224242,1748628663878,-151.0,0.00019178,2]
[363224243,1748628663887,-151.0,0.00019178,2]
[363224244,1748628663897,-151.0,0.00019178,2]
[363224245,1748628663908,-151.0,0.00019178,2]
[363224246,1748628663918,-151.0,0.00019178,2]
[363224247,1748628663928,-343.177287,0.00019178,2]
[363224248,1748628663938,-343.177287,0.00019178,2]
[363224249,1748628663948,-343.177287,0.00019178,2]
[363224250,1748628663958,-343.177287,0.00019178,2]
[363224251,1748628663968,-520.647503,0.00019178,2]
[363224252,1748628663978,-520.647503,0.00019178,2]
[363224253,1748628663988,-520.647503,0.00019178,2]
[363224254,1748628663998,-520.647503,0.00019178,2]
[363224255,1748628664007,-430.0,0.00019178,2]
[363224256,1748628664017,-430.0,0.00019178,2]
[363224257,1748628664027,-430.0,0.00019178,2]
[363224258,1748628664036,-430.0,0.00019178,2]
[363224259,1748628664046,-430.0,0.00019178,2]
[363224260,1748628664056,-500.0,0.00019178,2]
[363224261,1748628664065,-500.0,0.00019178,2]
[363224262,1748628664075,-500.0,0.00019178,2]
[363224263,1748628664086,-500.0,0.00019178,2]
[363224264,1748628664095,-500.0,0.00019178,2]
[363224265,1748628664106,-500.0,0.00019178,2]
[363224266,1748628664116,-500.0,0.00019178,2]
[363224267,1748628664125,-412.44144296,0.00019178,2]
[363224268,1748628664135,-500.0,0.00019178,2]
[363224269,1748628664145,-500.0,0.00019178,2]
[363224270,1748628664154,-500.0,0.00019178,2]
[363224271,1748628664165,-500.0,0.00019178,2]
[363224272,1748628664175,-500.0,0.00019178,2]
[363224273,1748628664185,-500.0,0.00019178,2]
[363224274,1748628664195,-500.0,0.00019178,2]
[363224275,1748628664207,-500.0,0.00019178,2]
[363224276,1748628664217,-500.0,0.00019178,2]
[363224277,1748628664227,-500.0,0.00019178,2]
[363224278,1748628664239,-500.0,0.00019178,2]
[363224279,1748628664250,-500.0,0.00019178,2]
[363224280,1748628664260,-500.0,0.00019178,2]
[363224281,1748628664270,-500.0,0.00019178,2]
[363224282,1748628664279,-500.0,0.00019178,2]
[363224283,1748628664292,-500.0,0.00019178,2]
[363224284,1748628664303,-240.8992639,0.00019178,2]
[363224285,1748628664313,-500.0,0.00019178,2]
[363224286,1748628664323,-500.0,0.00019178,2]
[363224287,1748628664334,-500.0,0.00019178,2]
[363224288,1748628664343,-500.0,0.00019178,2]
[363224289,1748628664353,-500.0,0.00019178,2]
[363224290,1748628664363,-500.0,0.00019178,2]
[363224291,1748628664373,-500.0,0.00019178,2]
[363224292,1748628664382,-500.0,0.00019178,2]
[363224293,1748628664392,-500.0,0.00019178,2]
[363224294,1748628664402,-500.0,0.00019178,2]
[363224295,1748628664413,-151.0,0.00019178,2]
[363224296,1748628664422,-182.926615,0.00019178,2]
[363224297,1748628664432,-162.769488,0.00019183,2]
[363224298,1748628664442,-965.409704,0.00019183,2]
[363224299,1748628664451,-965.409714,0.00019183,2]
[363224300,1748628664461,-151.0,0.00019183,2]
[363224301,1748628664569,-151.0,0.00019183,2]
[363224302,1748628664581,-2636.38,0.00019196,2]
[363224303,1748628664591,-1381.43,0.000192,2]
[363224304,1748628664601,-1253.12139875,0.00019214,2]
[363224305,1748628664611,-526.39,0.00019231,2]
[363224306,1748628664621,-659.05,0.00019231,2]
[363224307,1748628664631,-437.35,0.00019231,2]
[363224308,1748628664641,-3293.23,0.00019231,2]
[363224309,1748628664651,-5064.71,0.00019232,2]
[363224310,1748628664661,-3092.45,0.00019232,2]
[363224311,1748628664670,-4975.41,0.00019232,2]
[363224312,1748628664680,-438.83,0.00019232,2]
[363224313,1748628664689,-1388.75,0.00019232,2]
[363224314,1748628664699,-6322.34,0.00019232,2]
[363224315,1748628664709,-832.79,0.00019232,2]
[363224316,1748628664718,-830.88,0.00019232,2]
[363224317,1748628664728,-1096.68,0.00019232,2]
[363224318,1748628664738,-494.46,0.00019232,2]
[363224319,1748628664747,-4468.77,0.00019232,2]
[363224320,1748628664756,-5145.3,0.00019232,2]
[363224321,1748628664766,-430.0,0.00019232,2]
[363224322,1748628664776,-585.71,0.00019232,2]
[363224323,1748628664787,-1689.53,0.00019232,2]
[363224324,1748628664796,-3205.2,0.00019232,2]
[363224325,1748628664806,-922.57,0.00019232,2]
[363224326,1748628664816,-157.854491,0.00019233,2]
[363224327,1748628664826,-157.854491,0.00019233,2]
[363224328,1748628664837,-151.0,0.00019233,2]
[363224329,1748628664847,-430.0,0.00019233,2]
[363224330,1748628664857,-430.0,0.00019233,2]
[363224331,1748628664868,-430.0,0.00019233,2]
[363224332,1748628664878,-367.90819819,0.00019233,2]
[363224333,1748628664887,-430.0,0.00019233,2]
[363224334,1748628664897,-661.01,0.00019233,2]
[363224335,1748628664907,-430.0,0.00019233,2]
[363224336,1748628664917,-710.14,0.00019233,2]
[363224337,1748628664927,-430.0,0.00019233,2]
[363224338,1748628664937,-430.0,0.00019233,2]
[363224339,1748628664946,-430.0,0.00019233,2]
[363224340,1748628664956,-430.0,0.00019233,2]
[363224341,1748628664965,-1065.66,0.00019233,2]
[363224342,1748628664975,-1548.12,0.00019233,2]
[363224343,1748628664985,-430.0,0.00019233,2]
[363224344,1748628664995,-855.66,0.00019233,2]
[363224345,1748628665006,-430.0,0.00019233,2]
[363224346,1748628665016,-430.0,0.00019233,2]
[363224347,1748628665025,-734.81,0.00019233,2]
[363224348,1748628665035,-430.0,0.00019233,2]
[363224349,1748628665045,-2258.89,0.00019233,2]
[363224350,1748628665054,-478.93,0.00019233,2]
[363224351,1748628665064,-544.6,0.00019233,2]
[363224352,1748628665074,-803.69,0.00019233,2]
[363224353,1748628665083,-430.0,0.00019233,2]
[363224354,1748628665093,-1172.59,0.00019233,2]
[363224355,1748628665103,-475.91,0.00019233,2]
[363224356,1748628665113,-549.04,0.00019233,2]
[363224357,1748628665123,-1058.24,0.00019233,2]
[363224358,1748628665132,-1864.88,0.00019233,2]
[363224359,1748628665141,-430.0,0.00019233,2]
[363224360,1748628665151,-430.0,0.00019233,2]
[363224361,1748628665160,-480.88,0.00019233,2]
[363224362,1748628665170,-2183.03,0.00019233,2]
[363224363,1748628665180,-1372.05,0.00019233,2]
[363224364,1748628665189,-1629.45,0.00019233,2]
[363224365,1748628665202,-494.7,0.00019233,2]
[363224366,1748628665213,-960.93,0.00019233,2]
[363224367,1748628665223,-718.44,0.00019233,2]
[363224368,1748628665234,-6891.09,0.00019233,2]
[363224369,1748628665245,-430.0,0.00019233,2]
[363224370,1748628665255,-511.65,0.00019233,2]
[363224371,1748628665265,-430.0,0.00019233,2]
[363224372,1748628665276,-3500.14,0.00019233,2]
[363224373,1748628665285,-1228.28,0.00019233,2]
[363224374,1748628665295,-430.0,0.00019233,2]
[363224375,1748628665305,-3133.61,0.00019233,2]
[363224376,1748628665314,-430.0,0.00019233,2]
[363224377,1748628665324,-809.19,0.00019233,2]
[363224378,1748628665334,-1205.08,0.00019233,2]
[363224379,1748628665344,-652.3,0.00019233,2]
[363224380,1748628665354,-156.587,0.00019233,2]
[363224381,1748628665364,-1610.76,0.00019234,2]
[363224382,1748628665374,-6377.37,0.00019234,2]
[363224383,1748628665383,-532.04,0.00019234,2]
[363224384,1748628665392,-1824.07,0.00019234,2]
[363224385,1748628665402,-1305.58,0.00019234,2]
[363224386,1748628665411,-529.04,0.00019234,2]
[363224387,1748628665421,-1536.84,0.00019234,2]
[363224388,1748628665430,-452.37,0.00019234,2]
[363224389,1748628665441,-1533.3,0.00019234,2]
[363224390,1748628665451,-3646.79,0.00019234,2]
[363224391,1748628665460,-1682.8,0.00019234,2]
[363224392,1748628665470,-587.0,0.00019235,2]
[363224393,1748628665480,-587.0,0.00019235,2]
[363224394,1748628665490,-13061.26609033,0.00019236,2]
[363224395,1748628665500,-733.41055328,0.00019263,2]
[363224396,1748628665510,-155.07848048,0.00019263,2]
[363224397,1748628665520,-343.177287,0.00019267,2]
[363224398,1748628665529,-343.177287,0.00019267,2]
[363224399,1748628665540,-520.647503,0.00019267,2]
[363224400,1748628665551,-520.647503,0.00019267,2]
[363224401,1748628665560,-430.0,0.00019267,2]
[363224402,1748628665571,-430.0,0.00019267,2]
[363224403,1748628665581,-5000.0,0.00019268,2]
[363224404,1748628665591,-160.16771717,0.00019281,2]
[363224405,1748628665600,-400.31683951,0.00019281,2]
[363224406,1748628665610,-500.0,0.00019281,2]
[363224407,1748628665620,-341.46195536,0.00019287,2]
[363224408,1748628665630,-158.66588921,0.00019287,2]
[363224409,1748628665641,-162.380719,0.00019288,2]
[363224410,1748628665650,-6670.55226132,0.00019298,2]
[363224411,1748628665660,-637.0,0.000193,2]
[363224412,1748628665670,-151.0,0.00019314,2]
[363224413,1748628665679,-151.0,0.00019314,2]
[363224414,1748628665689,-151.0,0.00019329,2]
[363224415,1748628665698,-151.0,0.00019329,2]
[363224416,1748628665708,-151.0,0.00019329,2]
[363224417,1748628665718,-151.0,0.00019329,2]
[363224418,1748628665728,-151.0,0.00019329,2]
[363224419,1748628665737,-173.25996,0.00019329,2]
[363224420,1748628665747,-151.0,0.00019329,2]
[363224421,1748628665757,-173.25996,0.00019329,2]
[363224422,1748628665766,-157.854491,0.00019329,2]
[363224423,1748628665775,-157.854488,0.00019329,2]
[363224424,1748628665785,-43661.01378634,0.00019329,2]
[363224425,1748628666046,-430.0,0.00017041,2]
[363224426,1748628666056,-32562.576842,0.00019329,2]
[363224427,1748628666066,-168.3888056,0.00019343,2]
[363224428,1748628666075,-500.0,0.00019344,2]
[363224429,1748628666086,-500.69379208,0.00019344,2]
[363224430,1748628666095,-500.0,0.00019344,2]
[363224431,1748628666105,-478.90915414,0.00019344,2]
[363224432,1748628666116,-500.0,0.00019344,2]
[363224433,1748628666125,-500.0,0.00019344,2]
[363224434,1748628666135,-500.0,0.00019344,2]
[363224435,1748628666146,-501.12813567,0.00019344,2]
[363224436,1748628666156,-500.48097815,0.00019344,2]
[363224437,1748628666166,-500.0,0.00019344,2]
[363224438,1748628666177,-525.58676027,0.00019344,2]
[363224439,1748628666187,-500.0,0.00019344,2]
[363224440,1748628666197,-500.0,0.00019344,2]
[363224441,1748628666211,-500.0,0.00019344,2]
[363224442,1748628666220,-500.0,0.00019344,2]
[363224443,1748628666229,-500.0,0.00019344,2]
[363224444,1748628666239,-4168.3822411,0.00019348,2]
[363224445,1748628666484,-792.5,0.0001704,2]
[363224446,1748628666494,-430.0,0.00017041,2]
[363224447,1748628666503,-792.5,0.00017314,2]
[363224448,1748628666513,-792.5,0.00017588,2]
[363224449,1748628666522,-792.5,0.00017862,2]
[363224450,1748628666532,-792.5,0.00018136,2]
[363224451,1748628666542,-792.5,0.0001841,2]
[363224452,1748628666552,-792.5,0.00018684,2]
[363224453,1748628666561,-792.5,0.00018958,2]
[363224454,1748628666571,-707.89202386,0.00019348,2]
[363224455,1748628666583,-3249.46642672,0.00019348,2]
[363224456,1748628666592,-163.68044331,0.00019363,2]
[363224457,1748628666602,-325.79914212,0.00019363,2]
[363224461,1748629359494,312.708569,0.00013699,2]
[363224463,1748629507028,229.00963628,0.00016,2]
[363224470,1748629604158,853.624266,0.00015938,2]
[363224483,1748629658637,3576.927474,0.00015938,2]
[363224484,1748629658660,8366.40333333,0.00015938,2]
[363224485,1748629658684,8366.40333333,0.00015938,2]
[363224486,1748629658707,4590.26585934,0.00015938,2]
[363224488,1748629673369,3500.39034045,0.00016,2]
[363224489,1748629682079,275.74713354,0.00016,2]
[363224490,1748629682105,4024.1266328,0.00016,2]
[363224491,1748629712474,4342.27670053,0.00016,2]
[363224495,1748629719578,494.644809,0.0002,120]
[363224497,1748629721200,4548.18611398,0.00015,2]
[363224498,1748629723418,2114.75080884,0.0001,2]
[363224646,1748629832815,-300.0,0.0001592,2]
[363224648,1748629832825,-300.0,0.0001592,2]
[363224650,1748629832835,-300.0,0.0001592,2]
[363224652,1748629832844,-300.0,0.0001592,2]
[363224654,1748629832854,-1200.0,0.0001592,2]
[363224656,1748629832863,-9991.9075006,0.00015921,2]
[363224658,1748629832873,-350.57257841,0.00015921,2]
[363224660,1748629832883,-365.86688639,0.00016,2]
[363224662,1748629832893,-2409.583584,0.00016014,2]
[363224663,1748629832903,-3084.02089781,0.00016701,2]
[363224665,1748629832914,-228.17132319,0.00016839,2]
[363224666,1748629832923,-300.0,0.00016936,2]
[363224667,1748629832933,-430.0,0.00016938,2]
[363224668,1748629832942,-109.45707495,0.00016938,2]
[363224714,1748629838379,-329.91292505,0.00016938,2]
[363224716,1748629838389,-430.0,0.00016938,2]
[363224718,1748629838398,-2195.49,0.00016938,2]
[363224720,1748629838408,-430.0,0.00016938,2]
[363224722,1748629838417,-3376.47,0.00016938,2]
[363224724,1748629838426,-191.70898768,0.00016938,2]
[363224726,1748629838436,-1510.05874413,0.00016939,2]
[363224728,1748629838445,-430.0,0.00016939,2]
[363224730,1748629838455,-500.0,0.00016939,2]
[363224732,1748629838464,-430.0,0.00016939,2]
[363224733,1748629838473,-500.0,0.00016939,2]
[363224734,1748629838483,-430.0,0.00016939,2]
[363224735,1748629838493,-430.0,0.00016939,2]
[363224736,1748629838502,-467.24861879,0.00016939,2]
[363224737,1748629838512,-500.0,0.00016939,2]
[363224738,1748629838521,-341.1941447,0.00016939,2]
[363224739,1748629838531,-430.0,0.00016939,2]
[363224740,1748629838541,-517.67681305,0.00016939,2]
[363224741,1748629838551,-189.31241294,0.00016939,2]
[363224742,1748629838560,-749.49,0.00016939,2]
[363224743,1748629838570,-430.0,0.00016939,2]
[363224744,1748629838580,-430.0,0.00016939,2]
[363224745,1748629838589,-430.0,0.00016939,2]
[363224746,1748629838599,-430.0,0.00016939,2]
[363224747,1748629838610,-430.0,0.00016939,2]
[363224748,1748629838620,-430.0,0.00016939,2]
[363224749,1748629838629,-430.0,0.00016939,2]
[363224750,1748629838638,-2180.91,0.00016939,2]
[363224751,1748629838650,-430.0,0.00016939,2]
[363224752,1748629838659,-4214.89,0.00016939,2]
[363224753,1748629838669,-430.0,0.00016939,2]
[363224754,1748629838681,-3316.94,0.00016939,2]
[363224755,1748629838691,-430.0,0.00016939,2]
[363224756,1748629838700,-430.0,0.00016939,2]
[363224757,1748629838709,-925.83,0.00016939,2]
[363224758,1748629838718,-535.8,0.00016939,2]
[363224759,1748629838728,-555.19,0.00016939,2]
[363224760,1748629838737,-781.73,0.00016939,2]
[363224761,1748629838746,-553.92,0.00016939,2]
[363224762,1748629838755,-731.12,0.00016939,2]
[363224763,1748629838765,-430.0,0.00016939,2]
[363224764,1748629838774,-430.0,0.00016939,2]
[363224765,1748629838783,-430.0,0.00016939,2]
[363224766,1748629838793,-1243.25,0.00016939,2]
[363224767,1748629838803,-430.0,0.00016939,2]
[363224768,1748629838812,-430.0,0.00016939,2]
[363224769,1748629838821,-2979.18,0.00016939,2]
[363224770,1748629838832,-914.7,0.00016939,2]
[363224771,1748629838841,-640.62,0.00016939,2]
[363224772,1748629838850,-430.0,0.00016939,2]
[363224773,1748629838859,-3430.2,0.00016939,2]
[363224774,1748629838869,-478.96,0.00016939,2]
[363224775,1748629838878,-430.0,0.00016939,2]
[363224776,1748629838887,-430.0,0.00016939,2]
[363224777,1748629838897,-2136.8,0.00016939,2]
[363224778,1748629838907,-1367.73,0.00016939,2]
[363224779,1748629838917,-430.0,0.00016939,2]
[363224780,1748629838926,-430.0,0.00016939,2]
[363224781,1748629838936,-2333.43,0.00016939,2]
[363224782,1748629838945,-430.0,0.00016939,2]
[363224783,1748629838955,-615.05,0.00016939,2]
[363224784,1748629838964,-430.0,0.00016939,2]
[363224785,1748629838974,-745.02,0.00016939,2]
[363224786,1748629838984,-528.33,0.00016939,2]
[363224787,1748629838994,-803.39,0.00016939,2]
[363224788,1748629839144,-456.27,0.00016939,2]
[363224789,1748629839155,-430.0,0.00016939,2]
[363224790,1748629839164,-430.0,0.00016939,2]
[363224791,1748629839174,-1073.84,0.00016939,2]
[363224792,1748629839183,-367.90819819,0.0001694,2]
[363224793,1748629839193,-756.96,0.0001694,2]
[363224794,1748629839202,-468.22,0.0001694,2]
[363224795,1748629839212,-430.0,0.0001694,2]
[363224796,1748629839222,-430.0,0.0001694,2]
[363224797,1748629839231,-503.02,0.0001694,2]
[363224798,1748629839241,-430.0,0.0001694,2]
[363224799,1748629839251,-500.0,0.0001694,2]
[363224800,1748629839261,-606.09,0.0001694,2]
[363224801,1748629839270,-544.6,0.0001694,2]
[363224802,1748629839281,-1865.02,0.0001694,2]
[363224803,1748629839291,-749.59,0.0001694,2]
[363224804,1748629839302,-430.0,0.0001694,2]
[363224805,1748629839311,-1546.31,0.0001694,2]
[363224806,1748629839322,-430.0,0.0001694,2]
[363224807,1748629839333,-430.0,0.0001694,2]
[363224808,1748629839342,-1154.19,0.0001694,2]
[363224809,1748629839353,-870.04,0.0001694,2]
[363224810,1748629839362,-430.0,0.0001694,2]
[363224811,1748629839371,-4881.19,0.0001694,2]
[363224812,1748629839381,-430.0,0.0001694,2]
[363224813,1748629839391,-591.1,0.0001694,2]
[363224814,1748629839400,-2260.94,0.0001694,2]
[363224815,1748629839410,-430.0,0.0001694,2]
[363224816,1748629839419,-430.0,0.0001694,2]
[363224817,1748629839428,-265.2214248,0.00016941,2]
[363224818,1748629839438,-392.55646861,0.0001703,2]
[363224819,1748629839447,-500.0,0.0001703,2]
[363224820,1748629839456,-272.29795987,0.0001703,2]
[363224821,1748629839467,-436.75081153,0.0001703,2]
[363224822,1748629839476,-500.0,0.0001703,2]
[363224823,1748629839485,-400.51574819,0.0001703,2]
[363224824,1748629839494,-500.0,0.0001703,2]
[363224825,1748629839504,-500.0,0.0001703,2]
[363224826,1748629839513,-500.0,0.0001703,2]
[363224827,1748629839523,-500.0,0.0001703,2]
[363224828,1748629839533,-500.0,0.0001703,2]
[363224829,1748629839542,-500.0,0.0001703,2]
[363224830,1748629839552,-500.0,0.0001703,2]
[363224831,1748629839562,-500.0,0.0001703,2]
[363224832,1748629839571,-500.0,0.0001703,2]
[363224833,1748629839583,-500.0,0.0001703,2]
[363224834,1748629839592,-500.0,0.0001703,2]
[363224835,1748629839602,-500.0,0.0001703,2]
[363224836,1748629839611,-500.0,0.0001703,2]
[363224837,1748629839619,-500.0,0.0001703,2]
[363224838,1748629839628,-500.0,0.0001703,2]
[363224839,1748629839636,-500.0,0.0001703,2]
[363224840,1748629839646,-500.0,0.0001703,2]
[363224841,1748629839654,-500.0,0.0001703,2]
[363224842,1748629839663,-500.0,0.0001703,2]
[363224843,1748629839671,-382.13105491,0.0001703,2]
[363224844,1748629839683,-500.0,0.0001703,2]
[363224845,1748629839693,-500.0,0.0001703,2]
[363224846,1748629839702,-500.0,0.0001703,2]
[363224847,1748629839712,-500.0,0.0001703,2]
[363224848,1748629839722,-500.0,0.0001703,2]
[363224849,1748629839732,-500.0,0.0001703,2]
[363224850,1748629839742,-500.0,0.0001703,2]
[363224851,1748629839751,-500.0,0.0001703,2]
[363224852,1748629839761,-500.0,0.0001703,2]
[363224853,1748629839771,-500.0,0.0001703,2]
[363224854,1748629839780,-500.0,0.0001703,2]
[363224855,1748629839789,-500.0,0.0001703,2]
[363224856,1748629839801,-716.19,0.00017031,3]
[363224857,1748629839810,-716.19,0.00017031,3]
[363224858,1748629839820,-500.0,0.00017037,2]
[363224859,1748629839830,-430.0,0.00017038,2]
[363224860,1748629839840,-430.0,0.00017038,2]
[363224861,1748629839849,-469.04087542,0.00017038,2]
[363224863,1748629839859,-430.0,0.00017038,2]
[363224864,1748629839868,-430.0,0.00017038,2]
[363224865,1748629839878,-430.0,0.00017038,2]
[363224866,1748629839887,-450.06,0.00017038,2]
[363224867,1748629839897,-430.0,0.00017038,2]
[363224868,1748629839907,-430.0,0.00017038,2]
[363224869,1748629839916,-430.0,0.00017038,2]
[363224870,1748629839926,-430.0,0.00017038,2]
[363224871,1748629839936,-430.0,0.00017038,2]
[363224872,1748629839946,-430.0,0.00017038,2]
[363224873,1748629839956,-430.0,0.00017038,2]
[363224874,1748629839966,-430.0,0.00017038,2]
[363224875,1748629839976,-430.0,0.00017038,2]
[363224876,1748629839985,-430.0,0.00017038,2]
[363224877,1748629839995,-430.0,0.00017038,2]
[363224878,1748629840005,-430.0,0.00017038,2]
[363224879,1748629840014,-430.0,0.00017038,2]
[363224880,1748629840024,-430.0,0.00017038,2]
[363224881,1748629840033,-430.0,0.00017038,2]
[363224882,1748629840045,-532.51255465,0.00017038,2]
[363224883,1748629840055,-430.0,0.00017038,2]
[363224884,1748629840065,-430.0,0.00017038,2]
[363224885,1748629840074,-430.0,0.00017038,2]
[363224886,1748629840085,-430.0,0.00017038,2]
[363224887,1748629840094,-430.0,0.00017038,2]
[363224888,1748629840103,-430.0,0.00017038,2]
[363224889,1748629840112,-430.0,0.00017038,2]
[363224890,1748629840121,-430.0,0.00017038,2]
[363224891,1748629840132,-430.0,0.00017038,2]
[363224892,1748629840141,-430.0,0.00017038,2]
[363224893,1748629840151,-430.0,0.00017038,2]
[363224894,1748629840162,-223.09972044,0.00017038,2]
[363224895,1748629840171,-430.0,0.00017038,2]
[363224896,1748629840180,-430.0,0.00017038,2]
[363224897,1748629840191,-430.0,0.00017038,2]
[363224898,1748629840200,-430.0,0.00017038,2]
[363224899,1748629840210,-430.0,0.00017038,2]
[363224900,1748629840220,-500.0,0.00017038,2]
[363224901,1748629840230,-430.0,0.00017038,2]
[363224902,1748629840240,-430.0,0.00017038,2]
[363224903,1748629840249,-430.0,0.00017038,2]
[363224904,1748629840259,-430.0,0.00017038,2]
[363224905,1748629840269,-352.86833078,0.00017038,2]
[363224906,1748629840278,-430.0,0.00017038,2]
[363224907,1748629840288,-164.5448528,0.00017038,2]
[363224908,1748629840297,-430.0,0.00017038,2]
[363224909,1748629840307,-430.0,0.00017038,2]
[363224910,1748629840317,-430.0,0.00017038,2]
[363224911,1748629840327,-430.0,0.00017038,2]
[363224912,1748629840337,-430.0,0.00017038,2]
[363224913,1748629840347,-430.0,0.00017038,2]
[363224914,1748629840356,-430.0,0.00017038,2]
[363224915,1748629840365,-430.0,0.00017038,2]
[363224917,1748629840374,-430.0,0.00017038,2]
[363224919,1748629840383,-430.0,0.00017038,2]
[363224921,1748629840392,-4251.58,0.00017038,2]
[363224923,1748629840401,-430.0,0.00017038,2]
[363224925,1748629840410,-430.0,0.00017038,2]
[363224927,1748629840419,-430.0,0.00017038,2]
[363224929,1748629840428,-430.0,0.00017038,2]